fUST/lending_fUST_20241026
["ID","MTS","AMOUNT","RATE_DAILY","PERIOD"]
[340824258,1729881038751,-226.116428,0.00015302,2]
[340824259,1729881038762,-226.116428,0.00015343,2]
[340824260,1729881038771,-226.116428,0.00015383,2]
[340824261,1729881038781,-226.116428,0.00015424,2]
[340824262,1729881038791,-226.116428,0.00015464,2]
[340824263,1729881038803,-226.116428,0.00015505,2]
[340824264,1729881038815,-226.116428,0.00015545,2]
[340824265,1729881038827,-420.0,0.00015571,2]
[340824266,1729881038838,-420.0,0.00015638,2]
[340824267,1729881038848,-597.87232014,0.000157,2]
[340824268,1729881038862,-405.04,0.00016,2]
[340824269,1729881038872,-1822.48700255,0.00016332,2]
[340824284,1729881040886,273.37336231,9.9e-05,2]
[340824485,1729881046121,-23077.51299745,0.00016332,2]
[340824490,1729881046132,-500.0,0.000164,2]
[340824494,1729881046142,-2230.904919,0.00016511,2]
[340824498,1729881046153,-587.0,0.00017056,2]
[340824502,1729881046163,-587.0,0.00017202,2]
[340824506,1729881046174,-823.0,0.00018681,2]
[340824510,1729881046184,-576.0,0.00018922,2]
[340824513,1729881046195,-150.0,0.00019145,2]
[340824516,1729881046205,-528.0,0.00019172,2]
[340824520,1729881046215,-175.755665,0.00019178,2]
[340824524,1729881046226,-504.00044082,0.00019973,2]
[340824528,1729881046236,-197.45155391,0.00019973,2]
[340824533,1729881046247,-500.0,0.00019973,2]
[340824535,1729881046256,-500.0,0.00019973,2]
[340824538,1729881046266,-256.30564165,0.00019973,2]
[340824541,1729881046276,-500.0,0.00019973,2]
[340824544,1729881046285,-500.0,0.00019973,2]
[340824547,1729881046295,-500.0,0.00019973,2]
[340824550,1729881046305,-500.0,0.00019973,2]
[340824553,1729881046315,-500.0,0.00019973,2]
[340824557,1729881046324,-378.26,0.0001998,3]
[340824560,1729881046335,-481.51641157,0.00019989,2]
[340824562,1729881046344,-500.0,0.00019989,2]
[340824566,1729881046354,-458.97848664,0.00019989,2]
[340824568,1729881046366,-199.07640115,0.00019989,2]
[340824571,1729881046375,-500.0,0.00019989,2]
[340824574,1729881046385,-500.0,0.00019989,2]
[340824577,1729881046395,-364.88024532,0.00019989,2]
[340824580,1729881046405,-500.0,0.00019989,2]
[340824583,1729881046415,-500.0,0.00019989,2]
[340824586,1729881046424,-500.0,0.00019989,2]
[340824589,1729881046433,-500.0,0.00019989,2]
[340824592,1729881046443,-500.0,0.00019989,2]
[340824595,1729881046452,-500.0,0.00019989,2]
[340824598,1729881046461,-405.22859324,0.00019989,2]
[340824601,1729881046470,-576.11363816,0.00019989,2]
[340824603,1729881046480,-500.0,0.00019989,2]
[340824605,1729881046489,-500.0,0.00019989,2]
[340824607,1729881046498,-211.44674512,0.00019989,2]
[340824609,1729881046508,-500.0,0.00019989,2]
[340824611,1729881046518,-500.0,0.00019989,2]
[340824613,1729881046528,-500.0,0.00019989,2]
[340824616,1729881046537,-500.0,0.00019989,2]
[340824618,1729881046546,-500.0,0.00019989,2]
[340824619,1729881046556,-500.0,0.00019989,2]
[340824621,1729881046565,-500.0,0.00019989,2]
[340824623,1729881046574,-523.97271091,0.00019989,2]
[340824625,1729881046583,-500.0,0.00019989,2]
[340824627,1729881046592,-500.0,0.00019989,2]
[340824629,1729881046602,-500.0,0.00019989,2]
[340824631,1729881046613,-500.0,0.00019989,2]
[340824633,1729881046622,-500.0,0.00019989,2]
[340824635,1729881046632,-500.0,0.00019989,2]
[340824637,1729881046641,-500.0,0.00019989,2]
[340824639,1729881046650,-500.0,0.00019989,2]
[340824641,1729881046659,-500.0,0.00019989,2]
[340824643,1729881046668,-500.0,0.00019989,2]
[340824645,1729881046678,-500.0,0.00019989,2]
[340824647,1729881046687,-500.0,0.00019989,2]
[340824649,1729881046696,-500.0,0.00019989,2]
[340824651,1729881046705,-500.0,0.00019989,2]
[340824653,1729881046715,-500.0,0.00019989,2]
[340824655,1729881046727,-500.0,0.00019989,2]
[340824658,1729881046736,-212.03245039,0.00019989,2]
[340824660,1729881046746,-500.0,0.00019989,2]
[340824662,1729881046755,-500.0,0.00019989,2]
[340824664,1729881046765,-500.0,0.00019989,2]
[340824666,1729881046775,-500.0,0.00019989,2]
[340824668,1729881046784,-500.0,0.00019989,2]
[340824670,1729881046796,-500.0,0.00019989,2]
[340824672,1729881046806,-500.0,0.00019989,2]
[340824674,1729881046816,-500.0,0.00019989,2]
[340824676,1729881046825,-500.0,0.00019989,2]
[340824678,1729881046835,-526.3455396,0.00019989,2]
[340824680,1729881046844,-500.0,0.00019989,2]
[340824682,1729881046854,-500.0,0.00019989,2]
[340824684,1729881046868,-450.0,0.00019989,2]
[340824686,1729881046879,-500.0,0.00019989,2]
[340824688,1729881046889,-500.0,0.00019989,2]
[340824690,1729881046899,-500.0,0.00019989,2]
[340824692,1729881046909,-500.0,0.00019989,2]
[340824694,1729881046919,-500.0,0.00019989,2]
[340824697,1729881046928,-500.0,0.00019989,2]
[340824699,1729881046938,-500.0,0.00019989,2]
[340824701,1729881046947,-500.0,0.00019989,2]
[340824703,1729881046957,-500.0,0.00019989,2]
[340824705,1729881046966,-500.0,0.00019989,2]
[340824707,1729881046975,-500.0,0.00019989,2]
[340824709,1729881046984,-500.0,0.00019989,2]
[340824711,1729881046993,-500.0,0.00019989,2]
[340824713,1729881047002,-500.0,0.00019989,2]
[340824715,1729881047012,-500.0,0.00019989,2]
[340824716,1729881047021,-26454.6376909,0.0001999,3]
[340824717,1729881047030,-294533.0,0.0001999,2]
[340824718,1729881047039,-21281.27466877,0.0002,2]
[340824719,1729881047048,-178.02823934,0.0002,2]
[340824720,1729881047057,-11497.44515985,0.0002,2]
[340824721,1729881047067,-1510.64089408,0.0002,2]
[340824722,1729881047076,-1992.79055215,0.0002,2]
[340824723,1729881047085,-4328.14733822,0.0002,2]
[340824724,1729881047095,-349.84310115,0.0002,2]
[340824725,1729881047107,-158.308993,0.0002,2]
[340824726,1729881047121,-1000.0,0.00020247,2]
[340824727,1729881047131,-504.3335483,0.00020247,2]
[340824730,1729881047141,-1000.0,0.00020247,2]
[340824731,1729881047150,-160.05120095,0.00020373,2]
[340824733,1729881047159,-146813.0,0.00020377,2]
[340824735,1729881047168,-400.0,0.00020447,2]
[340824738,1729881047178,-1152.0,0.00020462,2]
[340824739,1729881047188,-1000.0,0.00020647,2]
[340824741,1729881047197,-161.03970054,0.000209,2]
[340824743,1729881047206,-260.55362418,0.00021,2]
[340824745,1729881047216,-10229.16125843,0.00021,2]
[340824747,1729881047225,-234.81037039,0.00021,2]
[340824749,1729881047235,-508.11558425,0.000212,2]
[340824751,1729881047245,-500.0,0.00021273,2]
[340824753,1729881047255,-500.0,0.00021547,2]
[340824755,1729881047264,-500.0,0.00021917,2]
[340824757,1729881047273,-166.666666,0.00021918,2]
[340824759,1729881047282,-500.0,0.00021918,2]
[340824761,1729881047292,-500.0,0.00021918,2]
[340824763,1729881047302,-500.0,0.00021918,2]
[340824765,1729881047311,-421.67441093,0.00021918,2]
[340824767,1729881047321,-500.0,0.00021918,2]
[340824769,1729881047330,-25526.97902215,0.00022,2]
[340824771,1729881047339,-159.93914413,0.00022,10]
[340824773,1729881047349,-527.0,0.00022172,2]
[340824775,1729881047358,-1324.52065342,0.000223,2]
[340824778,1729881047370,-212.0,0.00022412,2]
[340824780,1729881047381,-166.666666,0.00022431,2]
[340824782,1729881047391,-1215.12,0.000229,7]
[340824784,1729881047400,-166.666666,0.00022944,2]
[340824786,1729881047409,-201.0,0.00023,2]
[340824788,1729881047418,-241.38879189,0.00023,2]
[340824790,1729881047427,-1870.81620536,0.00023,2]
[340824792,1729881047436,-166.666666,0.00023456,2]
[340824794,1729881047446,-166.666666,0.00023969,2]
[340824796,1729881047455,-201.0,0.00024164,2]
[340824798,1729881047465,-166.666666,0.00024482,2]
[340824800,1729881047474,-1304.98481521,0.000245,2]
[340824802,1729881047483,-660.0,0.00024658,2]
[340824804,1729881047493,-2671.49,0.000247,14]
[340824806,1729881047502,-1036.77989785,0.00025,2]
[340824808,1729881047512,-8406.87296218,0.00025,2]
[340824810,1729881047521,-122417.56303552,0.00025,2]
[340824813,1729881047542,-275488.27506755,0.00025,2]
[340824989,1729881049186,273.37336231,9.9e-05,2]
[340825041,1729881057858,273.37336231,9.9e-05,2]
[340825042,1729881065593,273.37336231,9.9e-05,2]
[340825043,1729881074945,273.37336231,9.9e-05,2]
[340825044,1729881082661,273.37336231,9.9e-05,2]
[340825045,1729881090687,273.37336231,9.9e-05,2]
[340825046,1729881099039,273.37336231,9.9e-05,2]
[340825047,1729881107042,273.37336231,9.9e-05,2]
[340825048,1729881114767,273.37336231,9.9e-05,2]
[340825049,1729881123874,273.37336231,9.9e-05,2]
[340825050,1729881131658,273.37336231,9.9e-05,2]
[340825051,1729881139675,273.37336231,9.9e-05,2]
[340825052,1729881148416,273.37336231,9.9e-05,2]
[340825053,1729881156747,273.37336231,9.9e-05,2]
[340825054,1729881164685,273.37336231,9.9e-05,2]
[340825055,1729881172740,273.37336231,9.9e-05,2]
[340825056,1729881180987,273.37336231,9.9e-05,2]
[340825057,1729881188801,273.37336231,9.9e-05,2]
[340825058,1729881196798,273.37336231,9.9e-05,2]
[340825059,1729881204601,273.37336231,9.9e-05,2]
[340825060,1729881212978,273.37336231,9.9e-05,2]
[340825061,1729881220817,273.37336231,9.9e-05,2]
[340825062,1729881229507,273.37336231,9.9e-05,2]
[340825063,1729881237369,273.37336231,9.9e-05,2]
[340825064,1729881246014,273.37336231,9.9e-05,2]
[340825065,1729881254399,273.37336231,9.9e-05,2]
[340825066,1729881262870,273.37336231,9.9e-05,2]
[340825067,1729881271217,273.37336231,9.9e-05,2]
[340825068,1729881279461,273.37336231,9.9e-05,2]
[340825069,1729881287235,273.37336231,9.9e-05,2]
[340825070,1729881295829,273.37336231,9.9e-05,2]
[340825071,1729881303591,273.37336231,9.9e-05,2]
[340825072,1729881312107,273.37336231,9.9e-05,2]
[340825073,1729881319897,273.37336231,9.9e-05,2]
[340825074,1729881334817,273.37336231,9.9e-05,2]
[340825075,1729881349990,273.37336231,9.9e-05,2]
[340825076,1729881365097,273.37336231,9.9e-05,2]
[340825077,1729881380379,273.37336231,9.9e-05,2]
[340825078,1729881396707,273.37336231,9.9e-05,2]
[340825079,1729881413276,273.37336231,9.9e-05,2]
[340825080,1729881428660,273.37336231,9.9e-05,2]
[340825081,1729881444576,273.37336231,9.9e-05,2]
[340825082,1729881460738,273.37336231,9.9e-05,2]
[340825083,1729881476475,273.37336231,9.9e-05,2]
[340825084,1729881491887,273.37336231,9.9e-05,2]
[340825085,1729881507006,273.37336231,9.9e-05,2]
[340825086,1729881522820,273.37336231,9.9e-05,2]
[340825087,1729881538102,273.37336231,9.9e-05,2]
[340825088,1729881554068,273.37336231,9.9e-05,2]
[340825089,1729881569670,273.37336231,9.9e-05,2]
[340825090,1729881585447,273.37336231,9.9e-05,2]
[340825091,1729881601705,273.37336231,9.9e-05,2]
[340825092,1729881616869,273.37336231,9.9e-05,2]
[340825093,1729881632454,273.37336231,9.9e-05,2]
[340825094,1729881648240,273.37336231,9.9e-05,2]
[340825095,1729881664327,273.37336231,9.9e-05,2]
[340825096,1729881679270,273.37336231,9.9e-05,2]
[340825097,1729881694615,273.37336231,9.9e-05,2]
[340825098,1729881710234,273.37336231,9.9e-05,2]
[340825099,1729881725817,273.37336231,9.9e-05,2]
[340825100,1729881741871,273.37336231,9.9e-05,2]
[340825101,1729881758086,273.37336231,9.9e-05,2]
[340825102,1729881773776,273.37336231,9.9e-05,2]
[340825103,1729881789437,273.37336231,9.9e-05,2]
[340825104,1729881804615,273.37336231,9.9e-05,2]
[340825105,1729881820517,273.37336231,9.9e-05,2]
[340825106,1729881836219,273.37336231,9.9e-05,2]
[340825107,1729881851560,273.37336231,9.9e-05,2]
[340825108,1729881867271,273.37336231,9.9e-05,2]
[340825109,1729881882455,273.37336231,9.9e-05,2]
[340825164,1729882232383,-653.5,0.00013695,2]
[340825768,1729882238645,-409.45519885,0.00013695,2]
[340825782,1729882238767,-1844.55920372,0.00013695,2]
[340825784,1729882238779,-92.48559743,0.00013695,2]
[340825786,1729882238789,-3715.6637093,0.00013756,2]
[340825788,1729882238799,-300.0,0.00013819,2]
[340825791,1729882238809,-300.0,0.00013819,2]
[340825793,1729882238818,-634.44233031,0.0001382,2]
[340825795,1729882238828,-2970.68467586,0.0001382,2]
[340825798,1729882238851,-4119.10071634,0.0001382,2]
[340825967,1729882240637,-17810.2146078,0.0001382,2]
[340825969,1729882240648,-160.0,0.00013973,2]
[340825971,1729882240658,-360.0,0.00013973,2]
[340825973,1729882240667,-1000.21376671,0.0001415,2]
[340825975,1729882240681,-198.386872,0.0001425,2]
[340825977,1729882240690,-175.726687,0.0001425,2]
[340825979,1729882240700,-175.726687,0.00014488,2]
[340825981,1729882240710,-175.726687,0.00014725,2]
[340825983,1729882240720,-198.386872,0.00014963,2]
[340825985,1729882240730,-175.726687,0.00014963,2]
[340825987,1729882240740,-420.0,0.00015142,2]
[340825989,1729882240751,-420.0,0.00015201,2]
[340825991,1729882240761,-243.02,0.00016,2]
[340825993,1729882240770,-587.0,0.00016592,2]
[340825996,1729882240780,-167.0,0.00016721,2]
[340825998,1729882240790,-469.0,0.00018181,2]
[340826000,1729882240801,-162.514144,0.00019178,2]
[340826002,1729882240812,-178.8391,0.00019178,2]
[340826004,1729882240823,-151.5606197,0.0002,2]
[340826006,1729882240834,-284.328,0.00020147,2]
[340826008,1729882240846,-360.0,0.00020447,2]
[340826011,1729882240857,-1151.0,0.00020682,2]
[340826013,1729882240867,-500.0,0.0002092,2]
[340826015,1729882240877,-500.0,0.00021133,2]
[340826017,1729882240886,-501.41969194,0.000214,2]
[340826019,1729882240896,-501.47420076,0.000214,2]
[340826021,1729882240905,-500.0,0.000214,2]
[340826023,1729882240914,-500.0,0.00021674,2]
[340826025,1729882240925,-425.58954553,0.00021861,2]
[340826027,1729882240934,-425.5895455,0.00021863,2]
[340826029,1729882240944,-425.5895455,0.00021865,2]
[340826031,1729882240954,-425.5895455,0.00021867,2]
[340826033,1729882240964,-425.5895455,0.00021869,2]
[340826035,1729882240975,-166.666666,0.00021918,2]
[340826037,1729882240985,-1457.84194436,0.00021959,3]
[340826165,1729882803222,500.0,0.0001,2]
[340826166,1729882803564,500.0,0.0001,2]
[340826167,1729882803945,500.0,0.0001,2]
[340826168,1729882804309,500.0,0.0001,2]
[340826169,1729882968396,273.37336231,9.9e-05,2]
[340826170,1729882976768,273.37336231,9.9e-05,2]
[340826171,1729882985106,273.37336231,9.9e-05,2]
[340826172,1729882993697,273.37336231,9.9e-05,2]
[340826173,1729883001468,273.37336231,9.9e-05,2]
[340826174,1729883009441,273.37336231,9.9e-05,2]
[340826175,1729883017272,273.37336231,9.9e-05,2]
[340826176,1729883026348,273.37336231,9.9e-05,2]
[340826177,1729883034452,273.37336231,9.9e-05,2]
[340826178,1729883049885,273.37336231,9.9e-05,2]
[340826179,1729883065000,273.37336231,9.9e-05,2]
[340826180,1729883080218,273.37336231,9.9e-05,2]
[340826181,1729883103040,273.37336231,9.9e-05,2]
[340826182,1729883111621,273.37336231,9.9e-05,2]
[340826183,1729883119494,273.37336231,9.9e-05,2]
[340826184,1729883127271,273.37336231,9.9e-05,2]
[340826185,1729883136140,273.37336231,9.9e-05,2]
[340826186,1729883144805,273.37336231,9.9e-05,2]
[340826187,1729883152730,273.37336231,9.9e-05,2]
[340826188,1729883161316,273.37336231,9.9e-05,2]
[340826189,1729883169588,273.37336231,9.9e-05,2]
[340826190,1729883177619,273.37336231,9.9e-05,2]
[340826191,1729883185348,273.37336231,9.9e-05,2]
[340826192,1729883193163,273.37336231,9.9e-05,2]
[340826193,1729883202471,273.37336231,9.9e-05,2]
[340826194,1729883210854,273.37336231,9.9e-05,2]
[340826195,1729883226446,273.37336231,9.9e-05,2]
[340826196,1729883242612,273.37336231,9.9e-05,2]
[340826197,1729883258306,273.37336231,9.9e-05,2]
[340826198,1729883274010,273.37336231,9.9e-05,2]
[340826199,1729883290188,273.37336231,9.9e-05,2]
[340826200,1729883306526,273.37336231,9.9e-05,2]
[340826201,1729883321728,273.37336231,9.9e-05,2]
[340826202,1729883337990,273.37336231,9.9e-05,2]
[340826203,1729883353758,273.37336231,9.9e-05,2]
[340826204,1729883369103,273.37336231,9.9e-05,2]
[340826208,1729883384143,273.37336231,9.9e-05,2]
[340826209,1729883399251,273.37336231,9.9e-05,2]
[340826210,1729883415558,273.37336231,9.9e-05,2]
[340826211,1729883430688,273.37336231,9.9e-05,2]
[340826221,1729883432501,-168.888888,0.00013973,2]
[340826222,1729883432516,-177.35702344,0.00013973,2]
[340826223,1729883432534,-146.64297656,0.00013973,2]
[340826224,1729883432550,-167.160553,0.0001425,2]
[340826225,1729883432563,-180.318556,0.0001425,2]
[340826226,1729883432577,-236.437461,0.0001425,2]
[340826227,1729883432587,-150.03765335,0.0001432,2]
[340826310,1729883440693,-149.96234665,0.0001432,2]
[340826311,1729883440703,-300.0,0.0001432,2]
[340826312,1729883440713,-20.02765035,0.00014321,2]
[340826335,1729883446373,273.37336231,9.9e-05,2]
[340826340,1729883462007,273.37336231,9.9e-05,2]
[340826341,1729883477232,273.37336231,9.9e-05,2]
[340826342,1729883492098,273.37336231,9.9e-05,2]
[340826343,1729883507206,273.37336231,9.9e-05,2]
[340826344,1729883523189,273.37336231,9.9e-05,2]
[340826345,1729883538983,273.37336231,9.9e-05,2]
[340826346,1729883554745,273.37336231,9.9e-05,2]
[340826347,1729883569855,273.37336231,9.9e-05,2]
[340826348,1729883585544,273.37336231,9.9e-05,2]
[340826349,1729883601219,273.37336231,9.9e-05,2]
[340826350,1729883617329,273.37336231,9.9e-05,2]
[340826351,1729883632517,273.37336231,9.9e-05,2]
[340826352,1729883647672,273.37336231,9.9e-05,2]
[340826353,1729883663790,273.37336231,9.9e-05,2]
[340826354,1729883678959,273.37336231,9.9e-05,2]
[340826355,1729883694873,273.37336231,9.9e-05,2]
[340826356,1729883710620,273.37336231,9.9e-05,2]
[340826357,1729883723822,-400.0,0.00013973,2]
[340826358,1729883725961,273.37336231,9.9e-05,2]
[340826359,1729883741634,5000.0,0.000144,2]
[340826360,1729883756913,2210.34235098,0.000144,2]
[340826361,1729883853335,-189.347046,0.0001425,2]
[340826362,1729883853361,-176.468322,0.0001425,2]
[340826363,1729884004365,-236.437461,0.00014429,2]
[340826364,1729884004392,-180.318556,0.00014488,2]
[340826365,1729884039845,3000.0,0.00014021,2]
[340826366,1729884096262,157.24541401,0.0001,10]
[340826367,1729884112008,-236.437461,0.00014607,2]
[340826368,1729884112033,-176.468322,0.00014607,2]
[340826369,1729884112058,-597.87232014,0.00014638,2]
[340826370,1729884112082,-180.318556,0.00014725,2]
[340826371,1729884112108,-250.0,0.00014738,2]
[340826372,1729884112134,-250.0,0.00014778,2]
[340826373,1729884112159,-236.437461,0.00014785,2]
[340826374,1729884112185,-250.0,0.00014819,2]
[340826375,1729884112215,-250.0,0.00014859,2]
[340826376,1729884112240,-250.0,0.000149,2]
[340826377,1729884112266,-250.0,0.0001494,2]
[340826378,1729884112289,-167.160553,0.00014963,2]
[340826379,1729884112314,-236.437461,0.00014963,2]
[340826380,1729884112338,-176.468322,0.00014963,2]
[340826381,1729884112364,-180.318556,0.00014963,2]
[340826382,1729884112389,-250.0,0.0001498,2]
[340826383,1729884112414,-250.0,0.00015021,2]
[340826384,1729884112439,-250.0,0.00015061,2]
[340826385,1729884112465,-250.0,0.00015102,2]
[340826386,1729884112490,-250.0,0.00015142,2]
[340826387,1729884112515,-250.0,0.00015182,2]
[340826388,1729884112541,-250.0,0.00015223,2]
[340826389,1729884112567,-250.0,0.00015263,2]
[340826390,1729884112593,-250.0,0.00015304,2]
[340826391,1729884112618,-300.0,0.00015324,2]
[340826392,1729884112643,-300.0,0.00015324,2]
[340826393,1729884112670,-250.0,0.00015344,2]
[340826394,1729884112696,-250.0,0.00015384,2]
[340826395,1729884112720,-670.41418428,0.00015392,2]
[340826396,1729884112745,-2022.13429128,0.00015392,2]
[340826397,1729884264129,159.51,0.00022,60]
[340826459,1729884455287,159.5,0.00018986,15]
[340826460,1729884517922,31928.75283749,0.00023,120]
[340826462,1729884521486,18803.46474308,0.0001,2]
[340826463,1729884525268,1000.0,0.0001,2]
[340826484,1729884636621,-1263.2616747,0.00013689,2]
[340826485,1729884636633,-1330.4166275,0.00013868,2]
[340826486,1729884636644,-200.0,0.00013973,2]
[340826487,1729884636657,-380.0,0.00013973,2]
[340826488,1729884636667,-240.0,0.0001402,2]
[340826489,1729884636676,-240.0,0.0001402,2]
[340826490,1729884636686,-1764.77239464,0.00014021,2]
[340826556,1729884639758,-1010.46370111,0.00014021,2]
[340826591,1729884646697,-2564.48059518,0.00014021,2]
[340826616,1729884928901,666.13,0.00010959,2]
[340826617,1729884939536,555.11,0.00010959,2]
[340826618,1729884950792,462.59,0.00010959,2]
[340826619,1729884961103,385.49,0.00010959,2]
[340826621,1729884971680,321.24,0.00010959,2]
[340826622,1729884982258,267.7,0.00010959,2]
[340826623,1729884992858,223.08,0.00010959,2]
[340826624,1729885003453,185.9,0.00010959,2]
[340826627,1729885014045,154.92,0.00010959,2]
[340826628,1729885024689,774.63,0.00010959,2]
[340826629,1729885097283,666.13,0.00010959,2]
[340826630,1729885107854,555.1,0.00010959,2]
[340826631,1729885118631,462.59,0.00010959,2]
[340826632,1729885129169,385.49,0.00010959,2]
[340826633,1729885139706,321.24,0.00010959,2]
[340826634,1729885150286,267.7,0.00010959,2]
[340826635,1729885160976,223.08,0.00010959,2]
[340826636,1729885171871,185.9,0.00010959,2]
[340826637,1729885182287,154.92,0.00010959,2]
[340826638,1729885193237,774.63,0.00010959,2]
[340826639,1729885193685,1100.0,0.00022,60]
[340826647,1729885706267,-300.0,0.00012634,2]
[340826648,1729885706291,-23700.0,0.00012635,2]
[340826748,1729885842957,-840.98124426,0.00012198,2]
[340826753,1729886403182,500.0,0.0001,2]
[340826754,1729886403757,500.0,0.0001,2]
[340826755,1729886403956,500.0,0.0001,2]
[340826756,1729886404342,164.4151101,0.0001,2]
[340827469,1729887085418,6236.73,0.00011015,2]
[340827471,1729887332508,22876.657819,0.00010916,2]
[340827473,1729887786410,1211.2779712,0.00010551,2]
[340827667,1729888232207,-250.0,0.00011099,2]
[340827668,1729888232220,-3.32646647,0.0001113,2]
[340827806,1729888240264,-246.67353353,0.0001113,2]
[340827807,1729888240274,-250.0,0.0001116,2]
[340827808,1729888240283,-250.0,0.00011191,2]
[340827809,1729888240292,-250.0,0.00011221,2]
[340827810,1729888240302,-250.0,0.00011252,2]
[340827811,1729888240311,-250.0,0.00011282,2]
[340827812,1729888240320,-250.0,0.00011312,2]
[340827813,1729888240330,-250.0,0.00011343,2]
[340827814,1729888240339,-250.0,0.00011373,2]
[340827815,1729888240349,-250.0,0.00011404,2]
[340827816,1729888240359,-250.0,0.00011434,2]
[340827817,1729888240368,-250.0,0.00011465,2]
[340827818,1729888240377,-250.0,0.00011495,2]
[340827819,1729888240387,-300.0,0.00011497,2]
[340827820,1729888240397,-7547.50512164,0.00011498,2]
[340827821,1729888240406,-250.0,0.00011525,2]
[340827823,1729888240416,-250.0,0.00011556,2]
[340827825,1729888240425,-250.0,0.00011586,2]
[340827827,1729888240434,-250.0,0.00011617,2]
[340827828,1729888240443,-151.0,0.00011617,2]
[340827829,1729888240453,-402.63862,0.00011617,2]
[340827830,1729888240462,-402.63862,0.00011617,2]
[340827831,1729888240471,-603.032149,0.00011617,2]
[340827832,1729888240480,-603.032149,0.00011617,2]
[340827833,1729888240489,-151.0,0.00011617,2]
[340827834,1729888240501,-946.764842,0.00011617,2]
[340827835,1729888240510,-151.0,0.00011617,2]
[340827836,1729888240520,-946.764842,0.00011617,2]
[340827837,1729888240530,-151.0,0.00011647,2]
[340827838,1729888240541,-151.0,0.00011647,2]
[340827839,1729888240551,-155.943848,0.00011647,2]
[340827840,1729888240564,-151.0,0.00011647,2]
[340827841,1729888240574,-151.0,0.00011647,2]
[340827842,1729888240793,-151.0,0.00011647,2]
[340827843,1729888240804,-151.0,0.00011647,2]
[340827844,1729888240815,-151.0,0.00011647,2]
[340827845,1729888240826,-781.024918,0.00011647,2]
[340827847,1729888240836,-781.024918,0.00011647,2]
[340827849,1729888240847,-249.752165,0.00011647,2]
[340827851,1729888240857,-249.752165,0.00011647,2]
[340827853,1729888240868,-247.759685,0.00011647,2]
[340827855,1729888240877,-247.759685,0.00011647,2]
[340827857,1729888240888,-2554.705321,0.00011647,2]
[340827860,1729888240899,-2554.705321,0.00011647,2]
[340827862,1729888240908,-2864.51426,0.00011647,2]
[340827864,1729888240920,-2864.51426,0.00011647,2]
[340827866,1729888240931,-687.88157,0.00011647,2]
[340827868,1729888240941,-946.764842,0.00011647,2]
[340827870,1729888240951,-946.764842,0.00011647,2]
[340827872,1729888240961,-687.88157,0.00011647,2]
[340827875,1729888240971,-946.764842,0.00011647,2]
[340827877,1729888240983,-946.764842,0.00011647,2]
[340827879,1729888240992,-250.0,0.00011647,2]
[340827881,1729888241002,-250.0,0.00011678,2]
[340827883,1729888241012,-500.0,0.00011973,2]
[340827885,1729888241021,-575.80725602,0.00011999,2]
[340827887,1729888241031,-151.0,0.00011999,2]
[340827889,1729888241040,-151.0,0.00011999,2]
[340827891,1729888241050,-315.578443,0.00011999,2]
[340827893,1729888241059,-151.0,0.00011999,2]
[340827895,1729888241068,-315.578443,0.00011999,2]
[340827897,1729888241077,-422.761442,0.00011999,2]
[340827899,1729888241087,-422.761442,0.00011999,2]
[340827901,1729888241096,-422.761442,0.00011999,2]
[340827903,1729888241106,-422.761442,0.00011999,2]
[340827905,1729888241115,-422.761442,0.00011999,2]
[340827907,1729888241125,-422.761442,0.00011999,2]